lending/lending_fUSD_20240401
["ID","MTS","AMOUNT","RATE_DAILY","PERIOD"]
[321176037,1711941038819,-2848.73,0.00056789,120]
[321176038,1711941038828,-500.0,0.00056789,120]
[321176039,1711941038837,-500.0,0.00056789,120]
[321176040,1711941038846,-500.0,0.00056789,120]
[321176041,1711941038855,-500.0,0.00056789,120]
[321176042,1711941038864,-500.0,0.00056789,120]
[321176043,1711941038873,-1560.38,0.00056789,120]
[321176044,1711941038883,-500.0,0.00056789,120]
[321176045,1711941038892,-500.0,0.00056789,120]
[321176046,1711941038901,-500.0,0.00056789,120]
[321176047,1711941039049,-447.26852287,0.00056903,4]
[321176048,1711941039065,-428.49843215,0.00056905,20]
[321176049,1711941039075,-421.69,0.00056925,2]
[321176050,1711941039084,-561.55247378,0.00057063,120]
[321176051,1711941039093,-1470.61,0.00057063,120]
[321176052,1711941039102,-500.0,0.00057063,120]
[321176053,1711941039111,-1747.16,0.00057063,120]
[321176054,1711941039121,-500.0,0.00057063,120]
[321176055,1711941039130,-631.03,0.00057063,120]
[321176056,1711941039140,-940.97,0.00057063,120]
[321176057,1711941039149,-697.02,0.00057063,120]
[321176058,1711941039159,-500.0,0.00057063,120]
[321176059,1711941039168,-767.63,0.00057063,120]
[321176060,1711941039177,-1289.93,0.00057063,120]
[321176061,1711941039187,-2848.73,0.00057063,120]
[321176062,1711941039196,-500.0,0.00057063,120]
[321176063,1711941039205,-500.0,0.00057063,120]
[321176064,1711941039215,-151.0,0.00057063,30]
[321176065,1711941039223,-500.0,0.00057063,120]
[321176066,1711941039233,-151.0,0.00057063,120]
[321176067,1711941039246,-500.0,0.00057063,120]
[321176068,1711941039255,-1560.38,0.00057063,120]
[321176069,1711941039264,-500.0,0.00057063,120]
[321176070,1711941039274,-500.0,0.00057063,120]
[321176071,1711941039283,-500.0,0.00057063,120]
[321176072,1711941039293,-421.69,0.00057074,2]
[321176073,1711941039302,-359.23,0.00057126,2]
[321176074,1711941039312,-9909.65377854,0.00057165,2]
[321176075,1711941039322,-1470.61,0.00057336,120]
[321176076,1711941039333,-500.0,0.00057336,120]
[321176077,1711941039342,-1747.16,0.00057336,120]
[321176078,1711941039352,-500.0,0.00057336,120]
[321176079,1711941039361,-940.97,0.00057336,120]
[321176080,1711941039370,-697.02,0.00057336,120]
[321176081,1711941039379,-500.0,0.00057336,120]
[321176082,1711941039388,-423.51329751,0.00057336,120]
[321176083,1711941039416,-344.11670249,0.00057336,120]
[321176084,1711941039426,-1289.93,0.00057336,120]
[321176085,1711941039436,-2848.73,0.00057336,120]
[321176086,1711941039446,-500.0,0.00057336,120]
[321176087,1711941039455,-500.0,0.00057336,120]
[321176088,1711941039464,-500.0,0.00057336,120]
[321176089,1711941039473,-1560.38,0.00057336,120]
[321176090,1711941039482,-500.0,0.00057336,120]
[321176091,1711941039491,-500.0,0.00057336,120]
[321176092,1711941039500,-173.90200429,0.00057415,14]
[321176093,1711941039510,-151.0,0.00057515,120]
[321176094,1711941039519,-151.0,0.00057515,120]
[321176095,1711941039530,-380.646707,0.00057515,120]
[321176096,1711941039539,-380.646707,0.00057515,120]
[321176097,1711941039548,-151.0,0.00057515,7]
[321176098,1711941039557,-1193.457722,0.00057515,120]
[321176099,1711941039566,-1193.457722,0.00057515,120]
[321176100,1711941039575,-151.0,0.00057515,120]
[321176101,1711941039584,-151.0,0.00057515,120]
[321176102,1711941039593,-3013.571,0.00057515,120]
[321176103,1711941039602,-1463.0,0.00057515,120]
[321176104,1711941039611,-396.0,0.00057515,120]
[321176105,1711941039620,-1159.686,0.00057515,120]
[321176106,1711941039629,-151.725,0.00057515,120]
[321176107,1711941039637,-151.865,0.00057515,120]
[321176108,1711941039646,-2449.245,0.00057515,120]
[321176109,1711941039655,-1648.193,0.00057515,120]
[321176111,1711941039664,-217.0,0.00057515,2]
[321176112,1711941039673,-152.043,0.00057515,120]
[321176114,1711941039682,-5741.991,0.00057515,120]
[321176116,1711941039691,-4834.136,0.00057515,120]
[321176118,1711941039700,-23839.544,0.00057515,120]
[321176119,1711941039709,-2477.248,0.00057515,120]
[321176120,1711941039718,-1186.351,0.00057515,120]
[321176122,1711941039727,-546.228,0.00057515,120]
[321176124,1711941039736,-850.68,0.00057517,2]
[321176126,1711941039745,-850.68,0.00057532,2]
[321176127,1711941039754,-620.68,0.00057547,120]
[321176128,1711941039763,-500.0,0.00057547,120]
[321176129,1711941039773,-743.25,0.00057547,120]
[321176130,1711941039782,-590.40118367,0.00057547,120]
[321176131,1711941039791,-500.0,0.00057547,120]
[321176132,1711941039801,-500.0,0.00057547,120]
[321176133,1711941039810,-602.26,0.00057547,120]
[321176134,1711941039818,-693.44,0.00057547,120]
[321176135,1711941039827,-500.0,0.00057547,120]
[321176136,1711941039837,-500.0,0.00057547,120]
[321176137,1711941039846,-869.1,0.00057547,120]
[321176138,1711941039854,-2477.45,0.00057547,120]
[321176139,1711941039864,-848.79,0.00057547,21]
[321176140,1711941039873,-630.35635419,0.00057547,120]
[321176141,1711941039882,-500.0,0.00057547,120]
[321176142,1711941039891,-500.0,0.00057547,120]
[321176143,1711941039900,-542.29,0.00057547,120]
[321176144,1711941039909,-850.68,0.00057547,2]
[321176145,1711941039918,-850.68,0.00057562,2]
[321176146,1711941039927,-850.68,0.00057578,2]
[321176147,1711941039936,-850.68,0.00057593,2]
[321176148,1711941039945,-850.68,0.00057608,2]
[321176149,1711941039954,-1470.61,0.0005761,120]
[321176150,1711941039962,-500.0,0.0005761,120]
[321176151,1711941039971,-1318.36526806,0.0005761,120]
[321176152,1711941040026,-195.3,0.00057336,120]
[321176153,1711941040035,-500.0,0.00057547,120]
[321176154,1711941040044,-428.79473194,0.0005761,120]
[321176155,1711941040053,-500.0,0.0005761,120]
[321176156,1711941040062,-940.97,0.0005761,120]
[321176157,1711941040074,-697.02,0.0005761,120]
[321176158,1711941040082,-500.0,0.0005761,120]
[321176159,1711941040091,-767.63,0.0005761,120]
[321176160,1711941040100,-1289.93,0.0005761,120]
[321176161,1711941040110,-2848.73,0.0005761,120]
[321176162,1711941040119,-500.0,0.0005761,120]
[321176163,1711941040128,-500.0,0.0005761,120]
[321176164,1711941040137,-151.0,0.0005761,30]
[321176165,1711941040147,-500.0,0.0005761,120]
[321176166,1711941040158,-151.0,0.0005761,120]
[321176167,1711941040167,-1560.38,0.0005761,120]
[321176168,1711941040178,-500.0,0.0005761,120]
[321176169,1711941040187,-500.0,0.0005761,120]
[321176170,1711941040195,-850.68,0.00057623,2]
[321176171,1711941040206,-180.0,0.00057631,120]
[321176172,1711941040215,-850.68,0.00057638,2]
[321176173,1711941040225,-587.88526806,0.00057653,2]
[321176174,1711941040240,-262.79473194,0.00057653,2]
[321176175,1711941040249,-461.05099277,0.00057668,2]
[321176176,1711941040263,-389.62900723,0.00057668,2]
[321176177,1711941040274,-32.87099277,0.00057683,2]
[321176178,1711941040286,-817.80900723,0.00057683,2]
[321176179,1711941040295,-331.23850459,0.00057689,2]
[321176180,1711941040304,-850.68,0.00057699,2]
[321176181,1711941040313,-850.68,0.00057714,2]
[321176182,1711941040324,-850.68,0.00057729,2]
[321176183,1711941040333,-850.68,0.00057744,2]
[321176184,1711941040342,-198.10437024,0.00057759,2]
[321176185,1711941040353,-652.57562976,0.00057759,2]
[321176186,1711941040362,-850.68,0.00057774,2]
[321176187,1711941040371,-151.0,0.00057789,120]
[321176188,1711941040380,-151.0,0.00057789,120]
[321176189,1711941040389,-151.0,0.00057789,120]
[321176190,1711941040398,-500.0,0.00057789,120]
[321176191,1711941040407,-500.0,0.00057789,120]
[321176192,1711941040416,-500.0,0.00057789,120]
[321176193,1711941040425,-591.13349764,0.00057789,120]
[321176194,1711941040434,-500.0,0.00057789,120]
[321176195,1711941040443,-684.02,0.00057789,120]
[321176196,1711941040452,-500.0,0.00057789,120]
[321176197,1711941040461,-1311.15,0.00057789,120]
[321176198,1711941040470,-733.17,0.00057789,120]
[321176199,1711941040480,-500.0,0.00057789,120]
[321176200,1711941040491,-500.0,0.00057789,120]
[321176201,1711941040501,-3268.41,0.00057789,120]
[321176202,1711941040510,-500.0,0.00057789,120]
[321176203,1711941040519,-500.0,0.00057789,120]
[321176204,1711941040530,-500.0,0.00057789,120]
[321176205,1711941040539,-500.0,0.00057789,120]
[321176206,1711941040549,-500.0,0.00057789,120]
[321176207,1711941040559,-1051.92059757,0.00057789,120]
[321176208,1711941040570,-1159.83940243,0.00057789,120]
[321176209,1711941040579,-500.0,0.00057789,120]
[321176210,1711941040589,-500.0,0.00057789,120]
[321176211,1711941040600,-500.0,0.00057789,120]
[321176212,1711941040610,-625.4790914,0.00057789,120]
[321176213,1711941040619,-1557.96,0.00057789,120]
[321176214,1711941040629,-634.13718178,0.00057789,120]
[321176215,1711941040639,-646.87114851,0.00057789,120]
[321176216,1711941040649,-500.0,0.00057789,120]
[321176217,1711941040659,-595.41153415,0.00057789,120]
[321176218,1711941040667,-500.0,0.00057789,120]
[321176219,1711941040676,-500.0,0.00057789,120]
[321176220,1711941040686,-500.0,0.00057789,120]
[321176221,1711941040694,-500.0,0.00057789,120]
[321176222,1711941040703,-532.32,0.00057789,120]
[321176223,1711941040712,-850.68,0.00057789,2]
[321176224,1711941040721,-850.68,0.00057804,2]
[321176225,1711941040730,-620.68,0.00057821,120]
[321176226,1711941040739,-743.25,0.00057821,120]
[321176227,1711941040748,-500.0,0.00057821,120]
[321176228,1711941040757,-500.0,0.00057821,120]
[321176229,1711941040767,-602.26,0.00057821,120]
[321176230,1711941040776,-693.44,0.00057821,120]
[321176231,1711941040785,-500.0,0.00057821,120]
[321176232,1711941040794,-500.0,0.00057821,120]
[321176233,1711941040803,-380.646707,0.00057821,120]
[321176234,1711941040812,-380.646707,0.00057821,120]
[321176235,1711941040821,-869.1,0.00057821,120]
[321176236,1711941040830,-181.950711,0.00057821,7]
[321176237,1711941040839,-2477.45,0.00057821,120]
[321176238,1711941040849,-848.79,0.00057821,21]
[321176239,1711941040859,-1193.457722,0.00057821,120]
[321176240,1711941040868,-1193.457722,0.00057821,120]
[321176241,1711941040877,-500.0,0.00057821,120]
[321176242,1711941040886,-151.0,0.00057821,120]
[321176243,1711941040896,-151.0,0.00057821,120]
[321176244,1711941040905,-393.22049394,0.00057821,120]
[321176245,1711941040914,-504.89585925,0.00057821,120]
[321176246,1711941040926,-37.39414075,0.00057821,120]
[321176247,1711941040935,-500.0,0.00057821,120]
[321176248,1711941040943,-177.58,0.00057837,30]
[321176249,1711941040952,-500.0,0.00057847,120]
[321176250,1711941040961,-500.0,0.00057847,120]
[321176251,1711941040970,-500.0,0.00057847,120]
[321176252,1711941040978,-500.0,0.00057847,120]
[321176253,1711941040987,-500.0,0.00057847,120]
[321176254,1711941040995,-500.0,0.00057847,120]
[321176255,1711941041005,-500.0,0.00057847,120]
[321176256,1711941041013,-508.6613001,0.00057847,120]
[321176257,1711941041022,-509.95611709,0.00057847,2]
[321176258,1711941041031,-500.0,0.00057847,120]
[321176259,1711941041040,-500.0,0.00057847,120]
[321176260,1711941041049,-500.0,0.00057847,120]
[321176261,1711941041058,-556.55280327,0.00057847,120]
[321176262,1711941041068,-500.0,0.00057847,120]
[321176263,1711941041078,-592.79226554,0.00057847,120]
[321176264,1711941041088,-500.0,0.00057847,120]
[321176265,1711941041097,-524.89293863,0.00057847,120]
[321176266,1711941041107,-500.0,0.00057847,120]
[321176267,1711941041116,-500.0,0.00057847,120]
[321176268,1711941041125,-500.0,0.00057847,120]
[321176269,1711941041134,-526.4562727,0.00057847,120]
[321176270,1711941041145,-500.0,0.00057847,120]
[321176271,1711941041154,-500.0,0.00057847,120]
[321176272,1711941041163,-500.0,0.00057847,120]
[321176273,1711941041173,-500.0,0.00057847,120]
[321176274,1711941041182,-150.0,0.00057847,120]
[321176275,1711941041191,-500.0,0.00057847,120]
[321176276,1711941041200,-546.6832046,0.00057847,120]
[321176277,1711941041210,-564.03637921,0.00057847,120]
[321176278,1711941041220,-559.22801161,0.00057847,120]
[321176279,1711941041229,-500.0,0.00057847,120]
[321176280,1711941041240,-500.0,0.00057847,120]
[321176281,1711941041251,-603.73511971,0.00057847,120]
[321176282,1711941041261,-527.22249518,0.00057847,120]
[321176283,1711941041270,-500.0,0.00057847,120]
[321176284,1711941041279,-544.8423683,0.00057847,120]
[321176285,1711941041288,-130.93821392,0.00057847,120]
[321176290,1711941042953,-500.0,0.00056515,120]
[321176291,1711941042963,-228.805542,0.00057063,120]
[321176292,1711941042972,-228.805542,0.0005761,120]
[321176293,1711941042981,-394.53785484,0.00057847,120]
[321176294,1711941042989,-531.05683712,0.00057847,120]
[321176295,1711941042998,-500.0,0.00057847,120]
[321176296,1711941043008,-618.23588243,0.00057847,120]
[321176297,1711941043018,-500.0,0.00057847,120]
[321176298,1711941043030,-500.0,0.00057847,120]
[321176299,1711941043040,-508.09216949,0.00057847,120]
[321176300,1711941043050,-500.0,0.00057847,120]
[321176301,1711941043061,-646.97750489,0.00057847,120]
[321176302,1711941043071,-567.72826631,0.00057847,120]
[321176303,1711941043082,-558.12739504,0.00057847,120]
[321176304,1711941043092,-1038.26989751,0.00057847,120]
[321176305,1711941043101,-559.58922593,0.00057847,120]
[321176306,1711941043110,-559.52250363,0.00057847,120]
[321176307,1711941043120,-554.37497888,0.00057847,120]
[321176308,1711941043130,-500.0,0.00057847,120]
[321176309,1711941043140,-500.0,0.00057847,120]
[321176310,1711941043149,-540.31241306,0.00057847,120]
[321176311,1711941043159,-559.10414848,0.00057847,120]
[321176312,1711941043168,-511.9851706,0.00057847,120]
[321176313,1711941043177,-551.04212281,0.00057847,120]
[321176314,1711941043186,-537.1617912,0.00057847,120]
[321176315,1711941043195,-137.26338148,0.00057847,120]
[321176316,1711941043207,-376.65213679,0.00057847,120]
[321176317,1711941043217,-543.05079427,0.00057847,120]
[321176318,1711941043226,-528.40336848,0.00057847,120]
[321176319,1711941043237,-151.0,0.00057847,120]
[321176320,1711941043250,-500.0,0.00057847,120]
[321176321,1711941043259,-155.161592,0.00057847,120]
[321176322,1711941043269,-574.69776826,0.00057847,120]
[321176323,1711941043279,-539.51479292,0.00057847,120]
[321176324,1711941043288,-579.53198335,0.00057847,120]
[321176325,1711941043297,-544.90173808,0.00057847,120]
[321176326,1711941043306,-553.29481088,0.00057847,120]
[321176327,1711941043315,-570.22081024,0.00057847,120]
[321176328,1711941043325,-500.0,0.00057847,120]
[321176329,1711941043335,-500.0,0.00057847,120]
[321176330,1711941043344,-500.0,0.00057847,120]
[321176331,1711941043352,-500.0,0.00057847,120]
[321176332,1711941043361,-500.0,0.00057847,120]
[321176333,1711941043370,-500.0,0.00057847,120]
[321176334,1711941043379,-500.0,0.00057847,120]
[321176335,1711941043388,-500.0,0.00057847,120]
[321176336,1711941043397,-500.0,0.00057847,120]
[321176337,1711941043407,-500.0,0.00057847,120]
[321176338,1711941043417,-531.06487007,0.00057847,120]
[321176339,1711941043426,-500.0,0.00057847,120]
[321176340,1711941043435,-500.0,0.00057847,120]
[321176341,1711941043444,-500.0,0.00057847,120]
[321176342,1711941043453,-500.0,0.00057847,120]
[321176343,1711941043463,-500.0,0.00057847,120]
[321176344,1711941043472,-500.0,0.00057847,120]
[321176345,1711941043481,-500.0,0.00057847,120]
[321176346,1711941043490,-500.0,0.00057847,120]
[321176347,1711941043500,-500.0,0.00057847,120]
[321176348,1711941043509,-500.0,0.00057847,120]
[321176349,1711941043518,-500.0,0.00057847,120]
[321176350,1711941043528,-585.88584014,0.00057847,120]
[321176351,1711941043537,-500.0,0.00057847,120]
[321176352,1711941043547,-570.91527303,0.00057847,120]
[321176353,1711941043556,-557.52228378,0.00057847,120]
[321176354,1711941043565,-579.32202854,0.00057847,120]
[321176355,1711941043574,-572.34397957,0.00057847,120]
[321176356,1711941043584,-589.39462079,0.00057847,120]
[321176357,1711941043592,-500.0,0.00057847,120]
[321176358,1711941043602,-577.63811947,0.00057847,120]
[321176359,1711941043611,-151.0,0.00057847,30]
[321176360,1711941043620,-567.37326512,0.00057847,120]
[321176361,1711941043630,-542.79189497,0.00057847,120]
[321176362,1711941043639,-151.0,0.00057847,120]
[321176363,1711941043648,-500.0,0.00057847,120]
[321176364,1711941043657,-548.99820441,0.00057847,120]
[321176365,1711941043667,-228.805542,0.00057847,120]
[321176366,1711941043676,-500.0,0.00057847,120]
[321176367,1711941043685,-1470.61,0.00057884,120]
[321176368,1711941043695,-500.0,0.00057884,120]
[321176369,1711941043705,-1747.16,0.00057884,120]
[321176370,1711941043715,-500.0,0.00057884,120]
[321176371,1711941043724,-940.97,0.00057884,120]
[321176372,1711941043733,-697.02,0.00057884,120]
[321176373,1711941043743,-500.0,0.00057884,120]
[321176374,1711941043752,-767.63,0.00057884,120]
[321176375,1711941043761,-1289.93,0.00057884,120]
[321176376,1711941043770,-1193.457722,0.00057884,120]
[321176377,1711941043780,-1193.457722,0.00057884,120]
[321176378,1711941043790,-2848.73,0.00057884,120]
[321176379,1711941043799,-500.0,0.00057884,120]
[321176380,1711941043808,-500.0,0.00057884,120]
[321176381,1711941043817,-151.0,0.00057884,120]
[321176382,1711941043826,-151.0,0.00057884,120]
[321176383,1711941043835,-500.0,0.00057884,120]
[321176384,1711941043844,-1560.38,0.00057884,120]
[321176385,1711941043853,-500.0,0.00057884,120]
[321176386,1711941043862,-500.0,0.00057884,120]
[321176387,1711941043871,-5000.0,0.00057899,3]
[321176388,1711941043880,-150.0,0.0005792,30]
[321176389,1711941043890,-198.70729204,0.00057989,7]
[321176390,1711941043899,-4522.20023426,0.00057996,2]
[321176391,1711941043909,-394.07687043,0.00057998,120]
[321176392,1711941043917,-514.99043323,0.00057999,120]
[321176393,1711941043927,-523.8902397,0.00057999,120]
[321176394,1711941043937,-534.78957531,0.00057999,120]
[321176395,1711941043947,-520.13187097,0.00057999,120]
[321176396,1711941043956,-515.04680445,0.00057999,120]
[321176397,1711941043965,-528.21362194,0.00057999,120]
[321176398,1711941043979,-521.37169411,0.00057999,120]
[321176399,1711941044004,-0.98042408,0.00057999,120]
[321176400,1711941044013,-529.92626688,0.00057999,120]
[321176401,1711941044022,-510.32119422,0.00057999,120]
[321176402,1711941044033,-502.99436916,0.00057999,120]
[321176403,1711941044042,-566.18060454,0.00057999,120]
[321176404,1711941044051,-541.25050629,0.00057999,120]
[321176405,1711941044060,-604.75939341,0.00057999,120]
[321176406,1711941044069,-500.0,0.00057999,120]
[321176407,1711941044078,-554.77592733,0.00057999,120]
[321176408,1711941044087,-521.31838171,0.00057999,120]
[321176409,1711941044096,-243.45652568,0.00057999,120]
[321176410,1711941044105,-545.87098202,0.00057999,120]
[321176411,1711941044114,-480.0,0.00057999,120]
[321176412,1711941044124,-500.0,0.00057999,120]
[321176413,1711941044133,-500.0,0.00057999,120]
[321176414,1711941044143,-536.91432815,0.00057999,120]
[321176415,1711941044152,-500.0,0.00057999,120]
[321176416,1711941044161,-543.86048258,0.00057999,120]
[321176417,1711941044170,-286.99935121,0.00057999,120]
[321176418,1711941044179,-500.0,0.00057999,120]
[321176419,1711941044188,-550.62016503,0.00057999,120]
[321176420,1711941044197,-546.49327817,0.00057999,120]
[321176421,1711941044206,-566.02560906,0.00057999,120]
[321176422,1711941044215,-541.31433745,0.00057999,120]
[321176423,1711941044224,-559.81963929,0.00057999,120]
[321176424,1711941044234,-554.04475282,0.00057999,120]
[321176425,1711941044246,-485.0,0.00057999,120]
[321176426,1711941044255,-534.0928282,0.00057999,120]
[321176427,1711941044265,-536.97347846,0.00057999,120]
[321176428,1711941044273,-546.44938796,0.00057999,120]
[321176429,1711941044283,-500.0,0.00057999,120]
[321176430,1711941044421,-533.13641268,0.00057999,120]
[321176431,1711941044430,-537.58549942,0.00057999,120]
[321176432,1711941044439,-531.65177272,0.00057999,120]
[321176433,1711941044448,-500.0,0.00057999,120]
[321176434,1711941044457,-536.82188304,0.00057999,120]
[321176435,1711941044468,-542.44581893,0.00057999,120]
[321176436,1711941044479,-257.906778,0.00057999,30]
[321176437,1711941044488,-500.0,0.00057999,120]
[321176438,1711941044497,-156.766243,0.00057999,120]
[321176439,1711941044507,-532.59300291,0.00057999,120]
[321176440,1711941044517,-500.0,0.00057999,120]
[321176441,1711941044526,-544.86226286,0.00057999,120]
[321176442,1711941044535,-575.55289283,0.00057999,120]
[321176443,1711941044545,-257.906778,0.00057999,30]
[321176444,1711941044554,-524.50167868,0.00057999,120]
[321176445,1711941044563,-555.30664871,0.00057999,120]
[321176446,1711941044573,-536.54045048,0.00057999,120]
[321176447,1711941044582,-531.20117932,0.00057999,120]
[321176448,1711941044591,-522.47035068,0.00057999,120]
[321176449,1711941044601,-544.82602451,0.00057999,120]
[321176450,1711941044610,-500.0,0.00057999,30]
[321176451,1711941044619,-500.0,0.00057999,120]
[321176452,1711941044628,-542.94913594,0.00057999,120]
[321176453,1711941044637,-527.75860318,0.00057999,120]
[321176454,1711941044646,-589.74424019,0.00057999,120]
[321176455,1711941044656,-620.89760037,0.00057999,120]
[321176456,1711941044666,-553.18818117,0.00057999,120]
[321176457,1711941044675,-534.2487395,0.00057999,120]
[321176458,1711941044684,-517.55954181,0.00057999,120]
[321176459,1711941044694,-537.09704647,0.00057999,120]
[321176460,1711941044703,-500.0,0.00057999,120]
[321176461,1711941044711,-520.5501514,0.00057999,120]
[321176462,1711941044720,-500.0,0.00057999,120]
[321176463,1711941044729,-151.897227,0.00057999,21]
[321176464,1711941044738,-169.20145,0.00057999,120]
[321176465,1711941044747,-500.0,0.00057999,120]
[321176466,1711941044757,-500.0,0.00057999,120]
[321176467,1711941044766,-533.19899896,0.00057999,120]
[321176468,1711941044776,-500.0,0.00057999,120]
[321176469,1711941044785,-535.91711224,0.00057999,120]
[321176470,1711941044794,-552.85208264,0.00057999,30]
[321176471,1711941044802,-531.88627365,0.00057999,120]
[321176472,1711941044811,-547.15451798,0.00057999,120]
[321176473,1711941044820,-500.0,0.00057999,120]
[321176474,1711941044829,-196.06566557,0.00057999,120]
[321176475,1711941044838,-514.23656389,0.00057999,120]
[321176476,1711941044847,-523.48,0.00057999,120]
[321176477,1711941044856,-534.25929157,0.00057999,120]
[321176478,1711941044865,-151.0,0.00057999,120]
[321176479,1711941044874,-505.79922892,0.00057999,120]
[321176480,1711941044882,-500.0,0.00057999,120]
[321176481,1711941044891,-541.48167535,0.00057999,120]
[321176482,1711941044900,-151.0,0.00057999,120]
[321176483,1711941044912,-524.36429651,0.00057999,120]
[321176484,1711941044921,-543.43489091,0.00057999,120]
[321176485,1711941044930,-500.0,0.00057999,120]
[321176486,1711941044939,-524.7905429,0.00057999,120]
[321176487,1711941044948,-500.0,0.00057999,120]
[321176488,1711941044958,-240.900531,0.00057999,14]
[321176489,1711941044968,-500.0,0.00057999,120]
[321176490,1711941044977,-151.0,0.00057999,120]
[321176491,1711941044986,-543.25855947,0.00057999,120]
[321176492,1711941044995,-521.81706887,0.00057999,120]
[321176493,1711941045005,-531.16471785,0.00057999,120]
[321176494,1711941045014,-510.75478677,0.00057999,120]
[321176495,1711941045023,-500.0,0.00057999,120]
[321176496,1711941045033,-519.35437394,0.00057999,120]
[321176497,1711941045043,-500.0,0.00057999,120]
[321176498,1711941045053,-521.04403703,0.00057999,120]
[321176499,1711941045063,-456.53407375,0.00057999,120]
[321176500,1711941045071,-376.00946954,0.00057999,120]
[321176501,1711941045174,-207.81518171,0.00057999,120]
[321176502,1711941045183,-500.0,0.00057999,120]
[321176503,1711941045192,-500.0,0.00057999,120]
[321176504,1711941045201,-500.0,0.00057999,120]
[321176505,1711941045209,-245.01385864,0.00057999,120]
[321176506,1711941045218,-478.60881089,0.00057999,2]
[321176507,1711941045229,-21.39118911,0.00057999,2]
[321176508,1711941045241,-509.26325093,0.00057999,120]
[321176509,1711941045251,-500.0,0.00057999,120]
[321176510,1711941045261,-534.90842205,0.00057999,120]
[321176511,1711941045270,-505.28737053,0.00057999,120]
[321176512,1711941045280,-500.0,0.00057999,120]
[321176513,1711941045289,-407.14751758,0.00057999,120]
[321176536,1711941045872,-349.07,0.00056515,120]
[321176539,1711941045881,-323.37009638,0.00056788,2]
[321176546,1711941045929,-554.18566314,0.00056788,2]
[321176547,1711941046049,-122.44519522,0.00056788,2]
[321176548,1711941046058,-500.0,0.00056789,120]
[321176549,1711941046067,-500.0,0.00057063,120]
[321176550,1711941046077,-228.805542,0.00057063,120]
[321176551,1711941046086,-500.0,0.00057336,120]
[321176552,1711941046095,-500.0,0.0005761,120]
[321176553,1711941046105,-228.805542,0.0005761,120]
[321176554,1711941046115,-228.805542,0.00057847,120]
[321176555,1711941046126,-596.25395315,0.00057884,120]
[321176556,1711941046136,-124.11875707,0.00057999,120]
[321176557,1711941046145,-528.80714588,0.00057999,120]
[321176558,1711941046154,-534.16742202,0.00057999,120]
[321176559,1711941046163,-532.68833858,0.00057999,120]
[321176560,1711941046171,-551.36962422,0.00057999,120]
[321176561,1711941046180,-234.08597232,0.00057999,120]
[321176562,1711941046189,-536.19263423,0.00057999,120]
[321176563,1711941046198,-500.0,0.00057999,120]
[321176564,1711941046207,-526.11097485,0.00057999,120]
[321176565,1711941046217,-581.90442676,0.00057999,120]
[321176566,1711941046226,-155.547368,0.00057999,120]
[321176567,1711941046236,-550.35967204,0.00057999,120]
[321176568,1711941046250,-500.0,0.00057999,120]
[321176569,1711941046259,-151.0,0.00057999,120]
[321176570,1711941046268,-151.482864,0.00057999,120]
[321176571,1711941046279,-500.0,0.00057999,120]
[321176572,1711941046288,-222.694361,0.00057999,120]
[321176573,1711941046296,-535.51510137,0.00057999,120]
[321176574,1711941046306,-222.694361,0.00057999,120]
[321176575,1711941046314,-519.22069657,0.00057999,120]
[321176576,1711941046325,-151.0,0.00057999,120]
[321176577,1711941046335,-154.694088,0.00057999,120]